[Event "2nd Goa GM Open 2019"]
[Site "Goa"]
[Date "2019.06.19"]
[Round "2.26"]
[White "Aaryan Varshney"]
[Black "Aditya Mittal"]
[Result "1-0"]
[ECO "D48"]
[WhiteElo "2196"]
[BlackElo "2461"]
[Annotator "ChessBase"]
[PlyCount "107"]
[EventDate "2019.06.17"]
[EventType "swiss"]
[EventCountry "IND"]
[SourceTitle "playchess.com"]
[Source "ChessBase"]
[SourceQuality "1"]
[TimeControl "5400+30"]

1. d4 {[%emt 0:00:00]} d5 {[%emt 0:00:00]} 2. c4 {[%emt 0:00:00]} c6 {[%emt 0:00:00]} 3. Nf3 {[%emt 0:00:00]} Nf6 {[%emt 0:00:07]} 4. Nc3 {[%emt 0:00:00]} e6 {[%emt 0:00:12]} 5. e3 {[%emt 0:00:05]} Nbd7 {[%emt 0:00:10]} 6. Bd3 {[%emt 0:00:15]} dxc4 {[%emt 0:00:11]} 7. Bxc4 {[%emt 0:00:07]} b5 {[%emt 0:00:08]} 8. Bd3 {[%emt 0:00:06]} a6 {[%emt 0:00:11]} 9. e4 {[%emt 0:00:08]} c5 {[%emt 0:00:14]} 10. d5 {[%emt 0:00:07]} c4 {[%emt 0:00:11]} 11. dxe6 {[%emt 0:01:36]} fxe6 {[%emt 0:00:10]} 12. Bc2 {[%emt 0:00:13]} Nc5 {[%emt 0:00:41]} 13. Qxd8+ {[%emt 0:02:28]} Kxd8 {[%emt 0:00:04]} 14. O-O {[%emt 0:02:49]} Ke8 {[%emt 0:00:19]} 15. Be3 {[%emt 0:02:04]} Bb7 {[%emt 0:00:54]} 16. Ng5 {[%emt 0:00:28]} Nfd7 {[%emt 0:08:19]} 17. a3 {[%emt 0:08:04]} h6 {[%emt 0:03:59]} 18. Nf3 {[%emt 0:00:54]} g5 {[%emt 0:00:46]} 19. Bd4 {[%emt 0:01:21]} Rg8 {[%emt 0:00:30]} 20. Rad1 {[%emt 0:00:54]} Bg7 {[%emt 0:02:49]} 21. Bxg7 {[%emt 0:08:17]} Rxg7 {[%emt 0:00:03]} 22. Rd2 {[%emt 0:00:25]} Ke7 {[%emt 0:05:43]} 23. Rfd1 {[%emt 0:01:28]} Rf8 {[%emt 0:00:28]} 24. Nd4 {[%emt 0:13:42]} Ne5 25. Nde2 {[%emt 0:01:55]} h5 {[%emt 0:04:21]} 26. f3 {[%emt 0:01:16]} Bc6 {[%emt 0:10:08]} 27. Nd4 {[%emt 0:02:44]} Bd7 {[%emt 0:02:18]} 28. Re2 {[%emt 0:07:59]} Kd8 {[%emt 0:09:32]} 29. b4 {[%emt 0:06:50]} cxb3 {[%emt 0:02:31]} 30. Bxb3 {[%emt 0:00:44]} Nxb3 {[%emt 0:06:41]} 31. Nxe6+ {[%emt 0:01:38]} Kc8 {[%emt 0:01:33]} 32. Nxf8 {[%emt 0:06:13]} Bc6 {[%emt 0:00:38]} 33. Ne6 {[%emt 0:02:07]} Rg6 {[%emt 0:01:23]} 34. Nd4 {[%emt 0:03:39]} Nxd4 {[%emt 0:00:24]} 35. Rxd4 {[%emt 0:00:01]} g4 {[%emt 0:00:21]} 36. fxg4 {[%emt 0:01:00]} Rxg4 {[%emt 0:02:22]} 37. Rf2 {[%emt 0:00:44]} h4 {[%emt 0:00:08]} 38. Rf5 {[%emt 0:00:53]} Nc4 {[%emt 0:00:33]} 39. a4 {[%emt 0:07:10]} Ne3 {[%emt 0:02:57]} 40. Rf2 {[%emt 0:00:00]} Kb7 {[%emt 0:00:00]} 41. h3 {[%emt 0:03:11]} Rg5 {[%emt 0:02:47]} 42. axb5 {[%emt 0:00:18]} axb5 {[%emt 0:00:07]} 43. Rd3 {[%emt 0:00:40]} Nc4 {[%emt 0:00:38]} 44. Rf7+ {[%emt 0:01:30]} Kb6 {[%emt 0:00:38]} 45. Rf5 {[%emt 0:01:32]} Rxf5 {[%emt 0:03:16]} 46. exf5 {[%emt 0:00:02]} b4 {[%emt 0:00:09]} 47. Na2 {[%emt 0:00:28]} Kc5 {[%emt 0:01:28]} 48. Rb3 {[%emt 0:02:52]} Nd6 {[%emt 0:01:10]} 49. Nxb4 {[%emt 0:02:14]} Kc4 {[%emt 0:00:29]} 50. Rb2 {[%emt 0:00:48]} Be4 {[%emt 0:00:22]} 51. f6 {[%emt 0:00:28]} Kc3 {[%emt 0:00:06]} 52. Re2 {[%emt 0:00:10]} Bb7 {[%emt 0:00:35]} 53. Re7 {[%emt 0:00:23]} Kxb4 {[%emt 0:00:16]} 54. f7 {[%emt 0:00:05]} 1-0

[Event "2nd Goa GM Open 2019"]
[Site "Goa"]
[Date "2019.06.19"]
[Round "2.27"]
[White "Vignesh N R"]
[Black "Vantika Agrawal"]
[Result "1-0"]
[ECO "B30"]
[WhiteElo "2459"]
[BlackElo "2223"]
[Annotator "ChessBase"]
[PlyCount "150"]
[EventDate "2019.06.17"]
[EventType "swiss"]
[EventCountry "IND"]
[SourceTitle "playchess.com"]
[Source "ChessBase"]
[SourceQuality "1"]
[TimeControl "5400+30"]

1. e4 {[%emt 0:00:00]} c5 {[%emt 0:01:33]} 2. Nf3 {[%emt 0:00:00]} Nc6 {[%emt 0:00:07]} 3. Nc3 {[%emt 0:00:00]} e5 {[%emt 0:00:26]} 4. Bc4 {[%emt 0:00:08]} d6 {[%emt 0:00:09]} 5. d3 {[%emt 0:00:05]} Be7 {[%emt 0:00:03]} 6. O-O {[%emt 0:00:20]} Nf6 {[%emt 0:00:35]} 7. Ng5 {[%emt 0:00:07]} O-O {[%emt 0:00:20]} 8. f4 {[%emt 0:00:05]} Bg4 {[%emt 0:01:26]} 9. Qe1 {[%emt 0:00:07]} exf4 {[%emt 0:01:37]} 10. Bxf4 {[%emt 0:00:31]} Nd4 {[%emt 0:00:22]} 11. Qf2 {[%emt 0:02:14]} Qd7 {[%emt 0:07:50]} 12. h3 {[%emt 0:12:13]} Be6 {[%emt 0:03:00]} 13. Be3 {[%emt 0:02:05]} Bxc4 {[%emt 0:08:52]} 14. dxc4 {[%emt 0:00:06]} h6 {[%emt 0:03:13]} 15. Nf3 {[%emt 0:00:09]} Nxf3+ {[%emt 0:00:31]} 16. Qxf3 {[%emt 0:00:08]} Qe6 {[%emt 0:05:50]} 17. b3 {[%emt 0:00:02]} Bd8 {[%emt 0:02:37]} 18. e5 {[%emt 0:19:29]} dxe5 {[%emt 0:10:14]} 19. Qxb7 {[%emt 0:00:31]} Bb6 {[%emt 0:03:11]} 20. Qf3 {[%emt 0:00:31]} Nd7 {[%emt 0:08:04]} 21. g4 {[%emt 0:00:52]} Rfd8 {[%emt 0:12:28]} 22. Ne4 {[%emt 0:00:48]} Rac8 {[%emt 0:02:14]} 23. Rad1 {[%emt 0:00:40]} Nf8 {[%emt 0:01:54]} 24. Rd5 {[%emt 0:01:59]} Qe7 {[%emt 0:07:34]} 25. g5 {[%emt 0:07:06]} Rxd5 {[%emt 0:09:11]} 26. cxd5 {[%emt 0:00:04]} hxg5 {[%emt 0:00:53]} 27. Qxf7+ {[%emt 0:14:39]} Qxf7 {[%emt 0:00:16]} 28. Rxf7 {[%emt 0:00:03]} Rd8 {[%emt 0:02:26]} 29. Rb7 {[%emt 0:02:13]} Rxd5 {[%emt 0:00:42]} 30. Nxg5 {[%emt 0:00:22]} Rd6 {[%emt 0:06:48]} 31. c4 {[%emt 0:06:42]} Ne6 {[%emt 0:00:29]} 32. Rb8+ {[%emt 0:02:07]} Rd8 {[%emt 0:00:30]} 33. Rxd8+ {[%emt 0:00:02]} Nxd8 {[%emt 0:00:05]} 34. Kg2 {[%emt 0:00:02]} Kf8 {[%emt 0:00:45]} 35. Kf3 {[%emt 0:00:01]} Ke7 {[%emt 0:00:09]} 36. Ke4 {[%emt 0:00:02]} Kf6 {[%emt 0:00:51]} 37. Kd5 {[%emt 0:03:20]} Kf5 {[%emt 0:00:41]} 38. Ne4 {[%emt 0:00:01]} Ne6 {[%emt 0:00:31]} 39. Ng3+ {[%emt 0:02:25]} Kf6 {[%emt 0:00:05]} 40. Ne4+ {[%emt 0:04:59]} Kf5 {[%emt 0:00:05]} 41. Nd6+ {[%emt 0:00:02]} Kf6 {[%emt 0:00:13]} 42. Ke4 {[%emt 0:01:22]} Nd4 {[%emt 0:01:30]} 43. Nb5 {[%emt 0:02:03]} Ke6 {[%emt 0:00:36]} 44. Nxd4+ {[%emt 0:05:38]} exd4 {[%emt 0:00:19]} 45. Bd2 {[%emt 0:00:02]} a5 {[%emt 0:00:41]} 46. a3 {[%emt 0:00:02]} Bc7 {[%emt 0:00:31]} 47. b4 {[%emt 0:00:14]} cxb4 {[%emt 0:00:30]} 48. axb4 {[%emt 0:00:01]} axb4 {[%emt 0:00:26]} 49. Bxb4 {[%emt 0:00:01]} Be5 {[%emt 0:00:35]} 50. Bc5 {[%emt 0:00:23]} d3 {[%emt 0:00:27]} 51. Be3 {[%emt 0:00:01]} Bc7 {[%emt 0:00:32]} 52. Bd2 {[%emt 0:00:18]} Bb6 {[%emt 0:00:28]} 53. Kxd3 {[%emt 0:00:37]} Kf5 {[%emt 0:00:15]} 54. Be3 Bd8 {[%emt 0:00:41]} 55. c5 {[%emt 0:00:08]} g5 {[%emt 0:00:34]} 56. Kd4 {[%emt 0:00:24]} g4 {[%emt 0:00:32]} 57. hxg4+ {[%emt 0:00:05]} Kxg4 {[%emt 0:00:06]} 58. Ke4 {[%emt 0:00:32]} Bc7 {[%emt 0:00:45]} 59. c6 {[%emt 0:00:26]} Ba5 {[%emt 0:00:38]} 60. Bf4 {[%emt 0:02:03]} Bb6 {[%emt 0:00:22]} 61. Bb8 {[%emt 0:00:20]} Ba5 {[%emt 0:00:38]} 62. Bd6 {[%emt 0:05:35]} Bb6 {[%emt 0:00:27]} 63. Ke5 {[%emt 0:00:33]} Kf3 {[%emt 0:00:33]} 64. Kd5 {[%emt 0:00:00]} Kg4 {[%emt 0:00:29]} 65. Bc5 {[%emt 0:00:30]} Ba5 {[%emt 0:00:31]} 66. Bb4 {[%emt 0:01:20]} Bb6 {[%emt 0:00:32]} 67. Kc4 {[%emt 0:01:03]} Kf5 {[%emt 0:00:17]} 68. Kb5 {[%emt 0:00:02]} Bc7 {[%emt 0:00:14]} 69. Ka6 {[%emt 0:00:54]} Ke6 {[%emt 0:00:17]} 70. Kb7 {[%emt 0:00:01]} Bf4 {[%emt 0:01:00]} 71. Ba5 {[%emt 0:00:06]} Kd5 {[%emt 0:00:40]} 72. Bc7 {[%emt 0:00:15]} Bg5 {[%emt 0:00:31]} 73. Bg3 {[%emt 0:00:11]} Bd8 {[%emt 0:00:30]} 74. Bf2 {[%emt 0:00:09]} Kc4 {[%emt 0:00:30]} 75. Bb6 {[%emt 0:00:05]} Bxb6 1-0

[Event "2nd Goa GM Open 2019"]
[Site "Goa"]
[Date "2019.06.19"]
[Round "2.28"]
[White "Senthil Maran K"]
[Black "Karthikeyan, P.."]
[Result "1/2-1/2"]
[ECO "A04"]
[WhiteElo "2187"]
[BlackElo "2445"]
[Annotator "NA"]
[PlyCount "97"]
[EventDate "2019.06.17"]
[EventType "swiss"]
[EventCountry "IND"]
[SourceTitle "playchess.com"]
[Source "ChessBase"]
[SourceQuality "1"]
[TimeControl "5400+30"]

1. Nf3 {[%emt 0:03:34]} c5 {[%emt 0:00:00]} 2. e3 {[%emt 0:02:50]} Nf6 {[%emt 0:00:32]} 3. d4 {[%emt 0:00:02]} g6 {[%emt 0:01:04]} 4. d5 {[%emt 0:00:17]} Bg7 {[%emt 0:00:27]} 5. Nc3 {[%emt 0:00:06]} O-O {[%emt 0:01:44]} 6. Bc4 {[%emt 0:00:18]} d6 {[%emt 0:03:09]} 7. e4 {[%emt 0:01:12]} Na6 {[%emt 0:04:47]} 8. O-O {[%emt 0:00:22]} Nc7 {[%emt 0:01:19]} 9. a4 {[%emt 0:00:20]} b6 {[%emt 0:07:49]} 10. Qe2 {[%emt 0:03:00]} Bg4 $16 {[%emt 0:01:35]} 11. h3 {[%emt 0:05:06]} Bxf3 {[%emt 0:00:10]} 12. Qxf3 {[%emt 0:00:13]} a6 {[%emt 0:00:32]} 13. Qe2 {[%emt 0:02:10]} Nd7 {[%emt 0:04:19]} 14. Bg5 {[%emt 0:07:32]} Re8 {[%emt 0:02:12]} 15. f4 {[%emt 0:02:03]} Qc8 {[%emt 0:02:44]} 16. e5 {[%emt 0:28:21]} dxe5 {[%emt 0:07:22]} 17. d6 {[%emt 0:01:05]} exd6 {[%emt 0:04:25]} 18. f5 {[%emt 0:01:05]} gxf5 {[%emt 0:03:47]} 19. Rxf5 {[%emt 0:02:20]} Ne6 {[%emt 0:00:31]} 20. Qh5 {[%emt 0:11:54]} f6 {[%emt 0:02:52]} 21. Ne4 {[%emt 0:00:14]} Re7 {[%emt 0:28:16]} 22. Nxf6+ {[%emt 0:03:10]} Nxf6 {[%emt 0:00:28]} 23. Bxf6 {[%emt 0:04:54]} Bxf6 {[%emt 0:01:03]} 24. Rxf6 {[%emt 0:00:02]} Kh8 {[%emt 0:01:09]} 25. Bxe6 {[%emt 0:08:05]} Rxe6 {[%emt 0:00:03]} 26. Qh6 {[%emt 0:00:12]} Re7 {[%emt 0:04:12]} 27. Rxd6 {[%emt 0:08:47]} Rg7 {[%emt 0:03:19]} 28. Qf6 {[%emt 0:01:26]} Qb7 {[%emt 0:01:33]} 29. g4 {[%emt 0:00:26]} Qe4 {[%emt 0:04:50]} 30. Rad1 {[%emt 0:00:38]} Qe3+ {[%emt 0:02:09]} 31. Kg2 {[%emt 0:00:23]} Qe4+ {[%emt 0:01:09]} 32. Kg3 {[%emt 0:01:11]} Qe3+ {[%emt 0:03:09]} 33. Kh4 {[%emt 0:00:10]} Rag8 {[%emt 0:00:41]} 34. Rd7 {[%emt 0:00:14]} Qf4 {[%emt 0:01:42]} 35. Qxf4 {[%emt 0:01:42]} exf4 {[%emt 0:00:02]} 36. R7d6 {[%emt 0:01:42]} Rg6 {[%emt 0:00:50]} 37. Rxg6 {[%emt 0:00:42]} Rxg6 {[%emt 0:00:05]} 38. g5 {[%emt 0:00:23]} h6 {[%emt 0:00:53]} 39. gxh6 {[%emt 0:00:37]} Kh7 {[%emt 0:00:45]} 40. Rd2 {[%emt 0:00:36]} Kxh6 {[%emt 0:01:17]} 41. Rf2 {[%emt 0:00:08]} b5 {[%emt 0:00:44]} 42. axb5 {[%emt 0:00:49]} axb5 {[%emt 0:00:02]} 43. b3 {[%emt 0:00:25]} Rg3 {[%emt 0:01:12]} 44. Rxf4 {[%emt 0:00:11]} Rc3 {[%emt 0:00:01]} 45. Rf6+ {[%emt 0:00:22]} Kg7 {[%emt 0:00:09]} 46. Rf2 {[%emt 0:00:04]} b4 {[%emt 0:00:09]} 47. Kg4 {[%emt 0:01:25]} c4 {[%emt 0:00:02]} 48. bxc4 {[%emt 0:00:35]} Rxc4+ {[%emt 0:00:01]} 49. Rf4 {[%emt 0:00:27]} 1/2-1/2

[Event "2nd Goa GM Open 2019"]
[Site "Goa"]
[Date "2019.06.19"]
[Round "2.29"]
[White "Patil, Pratik"]
[Black "Mohammad Nubairshah Shaikh"]
[Result "0-1"]
[ECO "B18"]
[WhiteElo "2184"]
[BlackElo "2436"]
[Annotator "NA"]
[PlyCount "108"]
[EventDate "2019.06.17"]
[EventType "swiss"]
[EventCountry "IND"]
[SourceTitle "playchess.com"]
[Source "ChessBase"]
[SourceQuality "1"]
[TimeControl "5400+30"]

1. e4 c6 2. d4 d5 3. Nd2 dxe4 4. Nxe4 Bf5 5. Ng3 Bg6 6. c3 e6 7. Nh3 Bd6 8. Nf4 Qc7 9. Qf3 Nf6 10. h4 Nbd7 11. h5 Bc2 12. Bd3 Bxd3 13. Nxd3 h6 14. O-O O-O 15. Re1 Qa5 16. Ne4 Nxe4 17. Rxe4 Nf6 18. Rh4 Qd5 19. Qh3 Rfd8 20. Bf4 Bxf4 21. Nxf4 Qb5 22. Nd3 Rd5 23. a4 Qb3 24. Qf3 Rad8 25. Qe2 Qc4 26. Qc2 Rxh5 27. Rxh5 Nxh5 28. Nb4 Nf4 29. Re1 Nd5 30. Nd3 Qa6 31. Nc5 Qb6 32. a5 Qc7 33. b4 b6 34. axb6 axb6 35. Nd3 Ra8 36. Qb2 Qa7 37. c4 Ne7 38. Ne5 Qa2 39. Qc1 Qb3 40. Qf4 Nf5 41. Nxc6 Qxc4 42. Rc1 Qe2 43. d5 g5 44. Qc7 Ra2 45. Qxb6 exd5 46. Rf1 Rd2 47. Qb8+ Kg7 48. b5 Rb2 49. b6 Qe6 50. b7 Ne7 51. Nd8 Qb6 52. Qe5+ Kf8 53. Rc1 Qxd8 54. Rc8 Rb1+ 0-1

[Event "2nd Goa GM Open 2019"]
[Site "Goa"]
[Date "2019.06.19"]
[Round "2.29"]
[White "Patil, Pratik"]
[Black "Mohammad Nubairshah Shaikh"]
[Result "*"]
[ECO "B18"]
[WhiteElo "2184"]
[BlackElo "2436"]
[Annotator "NA"]
[PlyCount "23"]
[EventDate "2019.06.17"]
[EventType "swiss"]
[EventCountry "IND"]
[SourceTitle "playchess.com"]
[Source "ChessBase"]
[SourceQuality "1"]
[TimeControl "5400+30"]

1. e4 {[%emt 0:00:01]} c6 {[%emt 0:00:00]} 2. d4 {[%emt 0:00:10]} d5 {[%emt 0:00:00]} 3. Nd2 {[%emt 0:00:24]} dxe4 {[%emt 0:00:07]} 4. Nxe4 {[%emt 0:00:18]} Bf5 5. Ng3 {[%emt 0:00:17]} Bg6 {[%emt 0:00:00]} 6. c3 {[%emt 0:00:30]} e6 {[%emt 0:02:10]} 7. Nh3 Bd6 {[%emt 0:00:03]} 8. Nf4 {[%emt 0:03:58]} Qc7 {[%emt 0:00:03]} 9. Qf3 {[%emt 0:02:32]} Nf6 {[%emt 0:00:24]} 10. Bd3 {[%emt 0:10:36]} Bxd3 {[%emt 0:00:56]} 11. Nxd3 {[%emt 0:06:56]} h6 {[%emt 0:11:20]} 12. O-O {[%emt 0:00:30]} *

[Event "2nd Goa GM Open 2019"]
[Site "Goa"]
[Date "2019.06.19"]
[Round "2.30"]
[White "Michelle Catherina, P."]
[Black "Sammed Jaykumar, Shete"]
[Result "0-1"]
[ECO "B69"]
[WhiteElo "2182"]
[BlackElo "2431"]
[Annotator "NA"]
[PlyCount "118"]
[EventDate "2019.06.17"]
[EventType "swiss"]
[EventCountry "IND"]
[SourceTitle "playchess.com"]
[Source "ChessBase"]
[SourceQuality "1"]
[TimeControl "5400+30"]

1. e4 {[%emt 0:01:02]} c5 {[%emt 0:00:00]} 2. Nf3 {[%emt 0:00:14]} d6 {[%emt 0:00:00]} 3. d4 {[%emt 0:00:28]} Nf6 {[%emt 0:00:00]} 4. Nc3 {[%emt 0:00:07]} cxd4 {[%emt 0:00:00]} 5. Nxd4 {[%emt 0:00:10]} Nc6 {[%emt 0:00:20]} 6. Bg5 {[%emt 0:00:11]} e6 {[%emt 0:00:08]} 7. Qd2 {[%emt 0:00:09]} a6 {[%emt 0:00:05]} 8. O-O-O {[%emt 0:00:16]} Be7 {[%emt 0:00:04]} 9. f4 {[%emt 0:00:32]} Bd7 {[%emt 0:00:15]} 10. Nf3 {[%emt 0:00:09]} b5 {[%emt 0:00:09]} 11. Bxf6 {[%emt 0:00:53]} gxf6 {[%emt 0:00:09]} 12. Kb1 {[%emt 0:00:10]} Qb6 {[%emt 0:01:03]} 13. g3 {[%emt 0:03:51]} O-O-O {[%emt 0:02:35]} 14. f5 {[%emt 0:02:25]} Kb8 {[%emt 0:05:27]} 15. fxe6 {[%emt 0:05:28]} fxe6 {[%emt 0:00:35]} 16. Bh3 {[%emt 0:00:35]} Rhe8 $11 {[%emt 0:06:49]} 17. Ne2 {[%emt 0:05:31]} Bf8 {[%emt 0:12:32]} 18. Rhf1 {[%emt 0:05:20]} Bc8 {[%emt 0:03:19]} 19. Nfd4 {[%emt 0:10:18]} d5 {[%emt 0:18:14]} 20. Rxf6 {[%emt 0:10:53]} Nxd4 {[%emt 0:09:10]} 21. Qxd4 {[%emt 0:06:09]} Bc5 {[%emt 0:01:20]} 22. Qe5+ {[%emt 0:03:10]} Bd6 {[%emt 0:01:50]} 23. Qd4 {[%emt 0:01:59]} Qc7 {[%emt 0:00:32]} 24. Qd3 {[%emt 0:16:39]} Bb7 {[%emt 0:13:43]} 25. e5 {[%emt 0:04:01]} Bxe5 {[%emt 0:01:54]} 26. Rxe6 {[%emt 0:01:01]} Rxe6 {[%emt 0:06:39]} 27. Bxe6 {[%emt 0:01:18]} d4 {[%emt 0:01:09]} 28. Rf1 {[%emt 0:02:40]} Qc6 {[%emt 0:00:59]} 29. Bh3 {[%emt 0:06:36]} Qh6 {[%emt 0:00:54]} 30. Qf5 {[%emt 0:01:45]} Bc7 {[%emt 0:03:26]} 31. Ng1 {[%emt 0:06:18]} Qe3 {[%emt 0:04:19]} 32. Qf2 {[%emt 0:03:58]} Bb6 {[%emt 0:00:42]} 33. Qe2 {[%emt 0:01:22]} Be4 {[%emt 0:00:55]} 34. Qxe3 {[%emt 0:00:49]} dxe3 {[%emt 0:00:05]} 35. Kc1 {[%emt 0:00:29]} Rd2 {[%emt 0:00:31]} 36. Rf8+ {[%emt 0:00:20]} Kb7 {[%emt 0:00:09]} 37. Rf7+ {[%emt 0:00:25]} Kc6 {[%emt 0:00:26]} 38. Rf6+ {[%emt 0:00:26]} Kc7 {[%emt 0:00:31]} 39. Rf7+ {[%emt 0:00:46]} Kd8 {[%emt 0:00:04]} 40. Rf8+ {[%emt 0:00:31]} Ke7 {[%emt 0:00:07]} 41. Rf4 {[%emt 0:00:28]} Rxc2+ {[%emt 0:00:21]} 42. Kb1 {[%emt 0:00:31]} Rc4+ {[%emt 0:02:23]} 43. Rxe4+ {[%emt 0:00:25]} Rxe4 {[%emt 0:00:02]} 44. Ne2 {[%emt 0:00:18]} Re5 {[%emt 0:00:04]} 45. Bg4 {[%emt 0:00:53]} h5 {[%emt 0:00:42]} 46. Bf3 {[%emt 0:00:26]} Rf5 {[%emt 0:00:14]} 47. Be4 {[%emt 0:00:33]} Rf2 {[%emt 0:00:18]} 48. Bd3 {[%emt 0:00:06]} Rxh2 {[%emt 0:00:09]} 49. a4 {[%emt 0:00:48]} b4 {[%emt 0:00:57]} 50. Kc2 {[%emt 0:00:28]} a5 {[%emt 0:00:36]} 51. Kb3 {[%emt 0:00:22]} Kd6 {[%emt 0:00:43]} 52. Bb5 {[%emt 0:00:42]} h4 {[%emt 0:03:13]} 53. gxh4 {[%emt 0:00:18]} Rxh4 {[%emt 0:00:05]} 54. Bd3 {[%emt 0:00:31]} Rh8 {[%emt 0:01:25]} 55. Ba6 {[%emt 0:00:40]} Rh5 {[%emt 0:00:52]} 56. Kc4 {[%emt 0:00:35]} Rd5 {[%emt 0:00:24]} 57. Kb3 {[%emt 0:00:29]} Rd2 {[%emt 0:00:10]} 58. Ng3 {[%emt 0:00:28]} Ke5 59. Ne2 {[%emt 0:00:19]} Bd4 {[%emt 0:00:23]} 0-1

[Event "2nd Goa GM Open 2019"]
[Site "Goa"]
[Date "2019.06.19"]
[Round "3.4"]
[White "Sahoo, Utkal Ranjan"]
[Black "Petrosyan, Manuel"]
[Result "0-1"]
[ECO "A45"]
[WhiteElo "2371"]
[BlackElo "2573"]
[Annotator "ChessBase"]
[PlyCount "69"]
[EventDate "2019.06.17"]
[EventType "swiss"]
[EventCountry "IND"]
[SourceTitle "playchess.com"]
[Source "ChessBase"]
[SourceQuality "1"]
[TimeControl "5400+30"]

1. d4 {[%emt 0:00:10]} Nf6 {[%emt 0:00:00]} 2. Bg5 {[%emt 0:00:16]} e6 {[%emt 0:00:23]} 3. e4 {[%emt 0:00:17]} h6 {[%emt 0:00:07]} 4. Bxf6 {[%emt 0:00:06]} Qxf6 {[%emt 0:00:05]} 5. c3 {[%emt 0:00:08]} Nc6 {[%emt 0:01:44]} 6. e5 {[%emt 0:07:27]} Qg6 {[%emt 0:03:19]} 7. Nf3 {[%emt 0:03:01]} d6 {[%emt 0:02:03]} 8. Bd3 {[%emt 0:10:19]} Qxg2 {[%emt 0:03:21]} 9. Rg1 {[%emt 0:00:25]} Qh3 {[%emt 0:00:05]} 10. Nbd2 {[%emt 0:00:51]} dxe5 {[%emt 0:06:20]} 11. dxe5 {[%emt 0:00:14]} g5 {[%emt 0:01:33]} 12. Rg3 {[%emt 0:23:40]} Qh5 {[%emt 0:01:26]} 13. Ne4 {[%emt 0:05:06]} Bg7 {[%emt 0:01:07]} 14. Qb3 {[%emt 0:03:15]} a6 {[%emt 0:11:43]} 15. Nf6+ {[%emt 0:08:37]} Bxf6 {[%emt 0:00:32]} 16. exf6 {[%emt 0:00:01]} g4 {[%emt 0:02:01]} 17. Nd2 {[%emt 0:01:40]} Qe5+ {[%emt 0:13:03]} 18. Ne4 {[%emt 0:01:14]} b6 {[%emt 0:02:04]} 19. O-O-O {[%emt 0:04:42]} Bb7 {[%emt 0:00:04]} 20. Bc2 {[%emt 0:02:51]} Rd8 {[%emt 0:00:29]} 21. Rgd3 {[%emt 0:10:26]} O-O {[%emt 0:02:37]} 22. Qc4 {[%emt 0:06:31]} Qf4+ {[%emt 0:10:37]} 23. Kb1 {[%emt 0:00:18]} b5 {[%emt 0:01:38]} 24. Qc5 {[%emt 0:02:27]} Rxd3 {[%emt 0:00:14]} 25. Bxd3 {[%emt 0:01:46]} Rd8 {[%emt 0:00:49]} 26. Qe3 {[%emt 0:04:54]} Qxe3 {[%emt 0:04:28]} 27. fxe3 {[%emt 0:00:01]} Ne5 {[%emt 0:00:51]} 28. Nc5 {[%emt 0:00:11]} Rxd3 {[%emt 0:00:08]} 29. Rxd3 {[%emt 0:00:19]} Nxd3 {[%emt 0:00:05]} 30. Nxb7 {[%emt 0:00:05]} h5 {[%emt 0:00:09]} 31. Kc2 {[%emt 0:00:37]} h4 {[%emt 0:00:30]} 32. Kxd3 {[%emt 0:00:47]} g3 {[%emt 0:00:33]} 33. hxg3 {[%emt 0:00:31]} h3 {[%emt 0:00:05]} 34. Nc5 {[%emt 0:00:31]} h2 {[%emt 0:00:05]} 35. Kd4 0-1

[Event "2nd Goa GM Open 2019"]
[Site "Goa"]
[Date "2019.06.19"]
[Round "3.5"]
[White "Deepan Chakkravarthy J."]
[Black "Srijit Paul"]
[Result "1-0"]
[ECO "A81"]
[WhiteElo "2557"]
[BlackElo "2361"]
[Annotator "ChessBase"]
[PlyCount "132"]
[EventDate "2019.06.17"]
[EventType "swiss"]
[EventCountry "IND"]
[SourceTitle "playchess.com"]
[Source "ChessBase"]
[SourceQuality "1"]
[TimeControl "5400+30"]

1. d4 {[%emt 0:01:59]} f5 {[%emt 0:00:00]} 2. g3 {[%emt 0:00:10]} Nf6 {[%emt 0:00:00]} 3. Bg2 {[%emt 0:00:05]} g6 {[%emt 0:00:00]} 4. c4 {[%emt 0:05:00]} Bg7 {[%emt 0:00:08]} 5. Nc3 {[%emt 0:00:05]} O-O {[%emt 0:00:06]} 6. Nf3 {[%emt 0:00:55]} d6 {[%emt 0:00:12]} 7. O-O {[%emt 0:00:05]} e6 {[%emt 0:10:51]} 8. Qc2 {[%emt 0:04:49]} Nc6 {[%emt 0:00:05]} 9. d5 {[%emt 0:05:22]} Nb4 {[%emt 0:00:06]} 10. Qb3 {[%emt 0:01:09]} Na6 {[%emt 0:00:05]} 11. dxe6 {[%emt 0:01:11]} Nc5 {[%emt 0:00:04]} 12. Qc2 {[%emt 0:00:15]} Bxe6 {[%emt 0:03:15]} 13. b3 {[%emt 0:00:27]} c6 {[%emt 0:00:32]} 14. Bb2 {[%emt 0:00:08]} Qe7 {[%emt 0:02:07]} 15. Rad1 {[%emt 0:00:24]} a5 {[%emt 0:00:23]} 16. Rfe1 {[%emt 0:02:38]} Rad8 {[%emt 0:04:20]} 17. Nd4 {[%emt 0:06:24]} Bd7 {[%emt 0:11:03]} 18. e3 {[%emt 0:03:29]} Nce4 {[%emt 0:04:27]} 19. h3 {[%emt 0:02:15]} Rde8 {[%emt 0:10:39]} 20. Nxe4 {[%emt 0:12:14]} Nxe4 {[%emt 0:02:14]} 21. a3 {[%emt 0:07:41]} Be5 {[%emt 0:12:48]} 22. Nf3 {[%emt 0:03:15]} Bxb2 {[%emt 0:00:07]} 23. Qxb2 {[%emt 0:00:02]} Be6 {[%emt 0:00:05]} 24. Nd2 {[%emt 0:08:11]} d5 {[%emt 0:01:01]} 25. cxd5 {[%emt 0:04:47]} Bxd5 {[%emt 0:00:06]} 26. Nf3 {[%emt 0:02:55]} Qf6 {[%emt 0:19:36]} 27. Qxf6 {[%emt 0:01:27]} Nxf6 {[%emt 0:01:01]} 28. Nd4 {[%emt 0:01:02]} Rf7 {[%emt 0:01:15]} 29. b4 {[%emt 0:00:54]} axb4 {[%emt 0:00:06]} 30. axb4 {[%emt 0:00:01]} Bxg2 {[%emt 0:00:12]} 31. Kxg2 {[%emt 0:00:09]} Nd5 {[%emt 0:00:05]} 32. b5 {[%emt 0:01:52]} Nc3 {[%emt 0:02:47]} 33. Rd3 {[%emt 0:01:33]} Nxb5 {[%emt 0:00:04]} 34. Nxb5 {[%emt 0:01:27]} cxb5 {[%emt 0:00:06]} 35. Rd5 {[%emt 0:00:32]} Rc7 {[%emt 0:00:16]} 36. Rxb5 {[%emt 0:00:16]} Rd8 {[%emt 0:00:03]} 37. Re2 {[%emt 0:00:48]} Rdd7 {[%emt 0:00:12]} 38. Reb2 {[%emt 0:03:37]} h5 {[%emt 0:01:06]} 39. h4 {[%emt 0:01:50]} Kg7 {[%emt 0:00:04]} 40. Kf3 {[%emt 0:00:04]} Re7 {[%emt 0:00:23]} 41. Rb6 {[%emt 0:00:10]} Rcd7 {[%emt 0:00:28]} 42. R2b4 {[%emt 0:00:17]} Kh6 {[%emt 0:00:52]} 43. Rf6 Rd2 {[%emt 0:01:18]} 44. Rbb6 {[%emt 0:01:27]} Rg7 {[%emt 0:00:03]} 45. Rxf5 {[%emt 0:00:21]} Kh7 {[%emt 0:02:36]} 46. Rff6 {[%emt 0:00:34]} Ra2 {[%emt 0:00:08]} 47. e4 {[%emt 0:01:16]} Rc2 {[%emt 0:00:58]} 48. Ke3 {[%emt 0:00:50]} Ra2 {[%emt 0:00:06]} 49. Rb3 {[%emt 0:02:08]} Rc7 {[%emt 0:00:27]} 50. Rfb6 {[%emt 0:00:36]} Rcc2 {[%emt 0:00:56]} 51. Rxb7+ {[%emt 0:00:05]} Kh6 {[%emt 0:00:05]} 52. f3 {[%emt 0:00:04]} Rg2 {[%emt 0:00:30]} 53. Kf4 {[%emt 0:00:21]} Ra1 {[%emt 0:00:40]} 54. Rb8 {[%emt 0:01:23]} Kg7 {[%emt 0:00:05]} 55. R3b7+ {[%emt 0:00:06]} Kf6 {[%emt 0:00:23]} 56. e5+ {[%emt 0:02:53]} Ke6 {[%emt 0:00:07]} 57. Rb6+ {[%emt 0:00:16]} Kd5 {[%emt 0:00:05]} 58. Rd6+ {[%emt 0:00:07]} Kc5 {[%emt 0:00:04]} 59. Rc8+ {[%emt 0:00:23]} Kb5 {[%emt 0:00:05]} 60. Rxg6 {[%emt 0:00:35]} Ra3 {[%emt 0:00:48]} 61. e6 {[%emt 0:03:13]} Re2 {[%emt 0:00:12]} 62. Rg5+ {[%emt 0:02:16]} Kb6 {[%emt 0:00:16]} 63. Re5 {[%emt 0:00:32]} Rxf3+ {[%emt 0:00:29]} 64. Kxf3 {[%emt 0:00:04]} Rxe5 {[%emt 0:00:08]} 65. Rh8 {[%emt 0:00:03]} Kc6 {[%emt 0:00:07]} 66. e7 {[%emt 0:00:06]} Kd5 {Ke4+} 1-0